bitfinex/quotes_BTCUSD_20250902
["timestamp","ask_amount","ask_price","bid_price","bid_amount"]
[1756829012934,0.1800342,111090.0,111080.0,0.5002164]
[1756829013220,0.60595801,111090.0,111080.0,0.5002164]
[1756829014061,0.60595801,111090.0,111080.0,0.32016599]
[1756829014270,0.60595801,111090.0,111080.0,0.5002164]
[1756829014420,0.60595801,111090.0,111080.0,0.32016599]
[1756829014630,0.60595801,111090.0,111080.0,0.72016599]
[1756829015235,0.18904145,111110.0,111080.0,0.9002164]
[1756829015457,0.60592827,111110.0,111090.0,0.09719641]
[1756829015632,0.60592827,111110.0,111100.0,0.16281]
[1756829016228,0.18898488,111120.0,111100.0,0.34507822]
[1756829016410,0.61490869,111120.0,111110.0,0.00303]
[1756829016650,0.61490869,111120.0,111110.0,0.00202]
[1756829016837,0.61701869,111120.0,111110.0,0.00202]
[1756829017191,0.001,111110.0,111100.0,0.42969399]
[1756829017393,0.42692381,111110.0,111100.0,0.43171399]
[1756829018030,0.42692381,111110.0,111100.0,0.44073504]
[1756829018247,0.60692561,111110.0,111100.0,0.83171399]
[1756829018411,0.1810018,111110.0,111100.0,0.83171399]
[1756829018627,0.60592561,111110.0,111100.0,0.87571832]
[1756829019440,0.1800018,111110.0,111100.0,0.87871832]
[1756829019639,0.60592561,111110.0,111100.0,0.87871832]
[1756829020685,0.60592561,111110.0,111100.0,0.88772853]
[1756829020887,0.42592381,111110.0,111100.0,0.88772853]
[1756829021093,0.60592561,111110.0,111100.0,0.88772853]
[1756829021788,0.60592561,111110.0,111100.0,0.87871832]
[1756829022444,0.1800018,111110.0,111100.0,0.87871832]
[1756829022631,0.60592561,111110.0,111100.0,0.87871832]
[1756829022871,0.42592381,111110.0,111100.0,0.87871832]
[1756829023093,0.2064194,111130.0,111120.0,0.1799856]
[1756829023311,0.02649696,111130.0,111120.0,0.49527141]
[1756829023521,0.02649696,111130.0,111120.0,0.49833159]
[1756829023745,4.696e-05,111130.0,111120.0,0.89833159]
[1756829024190,0.18001636,111130.0,111120.0,0.89833159]
[1756829024854,4.696e-05,111130.0,111120.0,0.89833159]
[1756829025081,0.18210636,111130.0,111120.0,0.71516599]
[1756829025297,0.84488354,111130.0,111120.0,0.89515159]
[1756829025558,0.84279354,111130.0,111120.0,0.89833159]
[1756829026470,0.84279354,111130.0,111120.0,0.71516599]
[1756829026669,0.84488354,111130.0,111120.0,0.71516599]
[1756829027117,0.18210636,111130.0,111120.0,0.71516599]
[1756829027327,0.84798354,111130.0,111120.0,0.71512599]
[1756829027763,0.18210636,111130.0,111120.0,0.71512599]
[1756829027972,0.84798354,111130.0,111120.0,0.71299599]
[1756829028191,0.18520636,111130.0,111120.0,0.71299599]
[1756829028826,0.87294354,111130.0,111120.0,0.71299599]
[1756829029034,0.87294354,111130.0,111120.0,0.55535599]
[1756829029271,0.1799981,111120.0,111100.0,0.29646323]
[1756829029455,0.84277528,111120.0,111110.0,0.24955599]
[1756829029662,0.87292528,111120.0,111110.0,0.24955599]
[1756829029868,0.87292528,111120.0,111110.0,0.09191599]
[1756829030080,0.87292528,111120.0,111110.0,0.24955599]
[1756829031674,0.87292528,111120.0,111110.0,0.42955779]
[1756829031867,4.696e-05,111130.0,111120.0,0.1799856]
[1756829032128,4.696e-05,111130.0,111120.0,0.30040023]
[1756829032336,4.696e-05,111130.0,111120.0,0.29815041]
[1756829034994,4.696e-05,111130.0,111120.0,0.69815041]
[1756829035352,4.696e-05,111130.0,111120.0,1.36092759]
[1756829035563,4.696e-05,111130.0,111120.0,1.70092759]
[1756829036411,0.0002,111140.0,111130.0,0.5199694]
[1756829036623,0.0002,111140.0,111130.0,1.69716257]
[1756829036799,0.0002,111140.0,111130.0,1.69929257]
[1756829036989,0.0002,111140.0,111130.0,1.74519139]
[1756829037196,0.0002,111140.0,111130.0,1.58759139]
[1756829037683,0.0002,111140.0,111130.0,1.74515139]
[1756829038954,0.0002,111140.0,111130.0,1.98759139]
[1756829039172,0.0002,111140.0,111130.0,2.14515139]
[1756829039410,0.0002,111140.0,111130.0,2.15115139]
[1756829039614,1e-08,111140.0,111130.0,2.15115139]
[1756829040037,1e-08,111140.0,111130.0,2.19216738]
[1756829040283,1e-08,111140.0,111130.0,1.3718302]
[1756829040503,1e-08,111140.0,111130.0,1.5293502]
[1756829040736,1e-08,111140.0,111130.0,2.19212738]
[1756829040945,1e-08,111140.0,111130.0,2.03460738]
[1756829041152,1e-08,111140.0,111130.0,2.19212738]
[1756829042230,0.0002,111180.0,111170.0,0.86362065]
[1756829042449,0.00034093,111180.0,111170.0,0.51367946]
[1756829042647,0.00034093,111180.0,111170.0,1.18176664]
[1756829042867,0.00034093,111180.0,111170.0,1.58176664]
[1756829043301,0.00034093,111180.0,111170.0,1.58276664]
[1756829043736,0.00034093,111180.0,111170.0,1.58176664]
[1756829043953,0.00034093,111180.0,111170.0,1.59070611]
[1756829044623,0.00034093,111180.0,111170.0,1.77318611]
[1756829044833,0.00034093,111180.0,111170.0,1.93066611]
[1756829045035,0.00034093,111180.0,111170.0,1.11240893]
[1756829045243,0.00034093,111180.0,111170.0,1.93266611]
[1756829045453,0.00034093,111180.0,111170.0,1.81661689]
[1756829045660,0.00034093,111180.0,111170.0,1.97409689]
[1756829045864,0.00034093,111180.0,111170.0,1.31131971]
[1756829046073,0.00034093,111180.0,111170.0,1.81661689]
[1756829046281,0.00034093,111180.0,111170.0,1.97409689]
[1756829046494,0.00034093,111180.0,111170.0,1.30813971]
[1756829046727,0.00034093,111180.0,111170.0,1.15065971]
[1756829046728,0.00243093,111180.0,111170.0,1.15065971]
[1756829046933,0.00243093,111180.0,111170.0,1.30809971]
[1756829047570,0.00243093,111180.0,111170.0,1.57729971]
[1756829047989,0.00243093,111180.0,111170.0,1.41985971]
[1756829048207,0.03118093,111180.0,111170.0,1.57516971]
[1756829048635,0.03118093,111180.0,111170.0,1.41772971]
[1756829048846,0.02601093,111180.0,111170.0,1.57726971]
[1756829049060,0.02810093,111180.0,111170.0,1.57726971]
[1756829049267,0.02810093,111180.0,111170.0,1.57526971]
[1756829049747,0.02810093,111180.0,111170.0,1.57626971]
[1756829050176,0.02601093,111180.0,111170.0,2.24209689]
[1756829050402,0.02601093,111180.0,111170.0,1.57931971]
[1756829050676,0.02601093,111180.0,111170.0,2.23904689]
[1756829050892,0.02810093,111180.0,111170.0,1.41882971]
[1756829051105,0.02810093,111180.0,111170.0,1.57626971]
[1756829051316,0.02810093,111180.0,111170.0,1.57622971]
[1756829052107,0.02601093,111180.0,111170.0,1.57927971]
[1756829053054,0.02601093,111180.0,111170.0,2.24205689]
[1756829054081,0.02601093,111180.0,111170.0,1.57927971]
[1756829054284,0.02810093,111180.0,111170.0,2.08160689]
[1756829054493,0.03118093,111180.0,111170.0,1.57412971]
[1756829054698,0.03118093,111180.0,111170.0,1.57622971]
[1756829054935,0.03118093,111180.0,111170.0,1.41672971]
[1756829055279,0.03118093,111180.0,111170.0,1.57412971]
[1756829055922,0.03118093,111180.0,111170.0,1.23412971]
[1756829056143,0.03118093,111180.0,111170.0,1.21319089]
[1756829056353,0.03118093,111180.0,111170.0,0.75514677]
[1756829056354,0.21106939,111180.0,111170.0,0.75514677]
[1756829056572,0.87384657,111180.0,111170.0,0.4644]
[1756829056783,0.87384657,111180.0,111170.0,0.2218]
[1756829057007,0.87384657,111180.0,111170.0,0.22176]
[1756829057859,0.87384657,111180.0,111170.0,0.40166465]
[1756829058074,0.87384657,111180.0,111170.0,0.22176]
[1756829058600,0.87384657,111180.0,111170.0,0.22076]
[1756829058804,0.21106939,111180.0,111170.0,0.22076]
[1756829059010,0.21106939,111180.0,111170.0,0.40066465]
[1756829059396,0.21206939,111180.0,111170.0,0.22076]
[1756829059607,0.87484657,111180.0,111170.0,0.22076]
[1756829060051,0.87484657,111180.0,111170.0,0.40066465]
[1756829060460,0.21206939,111180.0,111170.0,0.40066465]
[1756829060670,0.03218093,111180.0,111170.0,0.40066465]
[1756829060892,0.03218093,111180.0,111170.0,0.49258064]
[1756829061105,0.02701093,111180.0,111170.0,1.15745782]
[1756829061318,0.02701093,111180.0,111170.0,1.16050782]
[1756829061531,0.02910093,111180.0,111170.0,0.49468064]
[1756829061738,0.03118093,111180.0,111170.0,0.49258064]
[1756829061943,0.03218093,111180.0,111170.0,0.49258064]
[1756829062176,0.03118093,111180.0,111170.0,0.49258064]
[1756829062399,0.03118093,111180.0,111170.0,0.76388064]
[1756829062600,0.03118093,111180.0,111170.0,0.76488064]
[1756829062808,0.02601093,111180.0,111170.0,0.76793064]
[1756829063016,0.02810093,111180.0,111170.0,0.76488064]
[1756829063224,0.03118093,111180.0,111170.0,1.16278064]
[1756829065196,0.21106939,111180.0,111170.0,1.16278064]
[1756829065421,0.87384657,111180.0,111170.0,0.24430465]
[1756829065638,0.87384657,111180.0,111170.0,0.22176]
[1756829065639,0.21106939,111180.0,111170.0,0.22176]
[1756829066286,0.21106939,111180.0,111170.0,0.40166465]
[1756829066499,0.21106939,111180.0,111170.0,0.22176]
[1756829066715,0.87384657,111180.0,111170.0,0.22076]
[1756829067516,0.87384657,111180.0,111170.0,0.0634]
[1756829067934,0.23046554,111180.0,111170.0,0.22076]
[1756829068137,0.89324272,111180.0,111170.0,0.22076]
[1756829068752,0.89424272,111180.0,111170.0,0.22076]
[1756829070223,0.89424272,111180.0,111170.0,0.15736]
[1756829070436,0.17992083,111160.0,111150.0,0.13694631]
[1756829070646,0.84269801,111160.0,111150.0,0.13694631]
[1756829070859,0.87353801,111160.0,111150.0,0.0634]
[1756829071087,0.17993702,111150.0,111140.0,0.24335321]
[1756829071314,0.02776,111150.0,111140.0,0.4947292]
[1756829071539,0.20769702,111150.0,111140.0,0.4947292]
[1756829071761,0.21077702,111150.0,111140.0,0.4926292]
[1756829072234,0.21077702,111150.0,111140.0,0.3352692]
[1756829072466,0.21077702,111150.0,111140.0,0.4926292]
[1756829072924,0.02876,111150.0,111140.0,0.4947292]
[1756829073164,0.8735542,111150.0,111140.0,0.31267599]
[1756829073386,0.8735542,111150.0,111140.0,0.4936292]
[1756829073839,0.69053718,111150.0,111140.0,0.4957292]
[1756829074496,0.8704742,111150.0,111140.0,0.4936292]
[1756829074715,0.8704742,111150.0,111140.0,0.4926292]
[1756829074716,0.8735542,111150.0,111140.0,0.4926292]
[1756829074936,0.8704742,111150.0,111140.0,0.4957292]
[1756829075162,0.8735542,111150.0,111140.0,0.4957292]
[1756829075602,0.21077702,111150.0,111140.0,0.4957292]
[1756829075811,0.8735542,111150.0,111140.0,0.4936292]
[1756829076277,0.8735542,111150.0,111140.0,0.31367599]
[1756829076522,0.8735542,111150.0,111140.0,0.4936292]
[1756829077624,0.8735542,111150.0,111140.0,0.22176]
[1756829078061,0.8735542,111150.0,111140.0,0.0644]
[1756829078280,0.8735542,111150.0,111140.0,0.22176]
[1756829078486,1.2135542,111150.0,111140.0,0.15836]
[1756829078703,1.24463673,111150.0,111140.0,0.001]
[1756829078935,1.24463673,111150.0,111140.0,0.15836]
[1756829079150,1.33655272,111150.0,111140.0,0.15736]
[1756829079582,1.33755272,111150.0,111140.0,0.15736]
[1756829079799,0.1799694,111130.0,111120.0,0.0634]
[1756829080016,0.87363658,111130.0,111120.0,0.22076]
[1756829080229,0.87363658,111130.0,111120.0,0.0634]
[1756829080437,0.87363658,111130.0,111120.0,0.22076]
[1756829080654,0.87363658,111130.0,111120.0,0.0634]
[1756829080864,0.87363658,111130.0,111120.0,0.15736]
[1756829081091,1.21363658,111130.0,111120.0,0.15736]
[1756829081303,1.21363658,111130.0,111120.0,0.15936]
[1756829081522,1.21363658,111130.0,111120.0,0.15736]
[1756829081941,0.1799856,111120.0,111110.0,0.07354631]
[1756829082155,0.87365278,111120.0,111110.0,0.23095327]
[1756829082932,0.87365278,111120.0,111110.0,0.41095507]
[1756829083134,0.87365278,111120.0,111110.0,0.23095327]
[1756829083712,0.2055756,111120.0,111110.0,0.41623507]
[1756829084136,0.02559,111120.0,111110.0,0.50815106]
[1756829084348,0.2076656,111120.0,111110.0,0.43148475]
[1756829084548,0.2108756,111120.0,111110.0,0.15740696]
[1756829084789,0.87365278,111120.0,111110.0,0.15740696]
[1756829085007,0.87044278,111120.0,111110.0,0.33956876]
[1756829085218,0.87365278,111120.0,111110.0,0.15740696]
[1756829085474,0.87365278,111120.0,111110.0,0.15840696]
[1756829085687,0.6336887,111120.0,111110.0,0.34056876]
[1756829086109,0.6336887,111120.0,111110.0,0.16056696]
[1756829086314,0.6368987,111120.0,111110.0,0.15840696]
[1756829086508,0.6368987,111120.0,111110.0,0.33840876]
[1756829086716,0.6336887,111120.0,111110.0,0.34056876]
[1756829086923,0.6336887,111120.0,111110.0,0.33956876]
[1756829087989,0.6315987,111120.0,111110.0,0.33956876]
[1756829088204,0.6315987,111120.0,111110.0,0.34268876]
[1756829088548,0.6315987,111120.0,111110.0,0.33956876]
[1756829088965,0.6315987,111120.0,111110.0,0.34056876]
[1756829089393,0.6336887,111120.0,111110.0,0.15840696]
[1756829089588,0.6368987,111120.0,111110.0,0.15840696]
[1756829090206,0.2108756,111120.0,111110.0,0.15840696]
[1756829090459,0.6368987,111120.0,111110.0,0.15840696]
[1756829091599,0.6368987,111120.0,111110.0,0.00104696]
[1756829091804,0.6368987,111120.0,111110.0,0.15840696]
[1756829092213,1.0629218,111120.0,111110.0,0.15840696]
[1756829092430,1.43400433,111120.0,111110.0,0.00104696]
[1756829092864,1.43400433,111120.0,111110.0,0.15840696]
[1756829093293,1.43400433,111120.0,111110.0,0.15740696]
[1756829093511,1.43400433,111120.0,111110.0,4.696e-05]
[1756829093694,1.43400433,111120.0,111110.0,0.15740696]
[1756829094160,1.61983631,111120.0,111110.0,4.696e-05]
[1756829094392,1.5472547,111120.0,111110.0,4.696e-05]
[1756829094606,1.7046147,111120.0,111110.0,4.696e-05]
[1756829095254,1.7546147,111120.0,111110.0,4.696e-05]
[1756829096558,1.51617217,111120.0,111110.0,4.696e-05]
[1756829096987,1.42425618,111120.0,111110.0,4.696e-05]
[1756829098120,1.4049218,111120.0,111110.0,4.696e-05]
[1756829099157,0.5475756,111120.0,111110.0,0.00532696]
[1756829099354,0.6335987,111120.0,111110.0,0.00532696]
[1756829099560,0.2075756,111120.0,111110.0,0.00532696]
[1756829099967,0.2075756,111120.0,111110.0,0.00220696]
[1756829100430,0.6356887,111120.0,111110.0,0.00220696]
[1756829100668,0.2075756,111120.0,111110.0,0.00532696]
[1756829100882,0.002,111120.0,111110.0,0.18532876]
[1756829101108,0.002,111120.0,111110.0,0.24876876]
[1756829101749,0.1819856,111120.0,111110.0,0.24876876]
[1756829101993,0.1819856,111120.0,111110.0,0.40612876]
[1756829102418,0.1819856,111120.0,111110.0,0.40300876]
[1756829102603,0.1819856,111120.0,111110.0,0.40612876]
[1756829102847,0.002,111120.0,111110.0,0.49804475]
[1756829103681,0.002,111120.0,111110.0,0.34068475]
[1756829104100,0.002,111120.0,111110.0,0.49800475]
[1756829104948,0.60599087,111140.0,111120.0,0.17997204]
[1756829105192,0.60549528,111140.0,111130.0,0.15732]
[1756829105400,0.60758528,111140.0,111130.0,0.15948]
[1756829105822,0.60549528,111140.0,111130.0,0.3425694]
[1756829106020,0.17995321,111140.0,111130.0,0.3425694]
[1756829106807,0.18204321,111140.0,111130.0,0.15948]
[1756829108674,0.18204321,111140.0,111130.0,0.3394494]
[1756829108881,0.61495697,111150.0,111140.0,0.17995321]
[1756829109083,0.18893387,111150.0,111140.0,0.17995321]
[1756829109284,0.18835309,111150.0,111140.0,0.18511321]
[1756829109642,0.47866448,111160.0,111150.0,0.17993702]
[1756829109857,0.20551083,111160.0,111150.0,0.18196702]
[1756829110068,0.20551083,111160.0,111150.0,0.00203]
[1756829110069,0.20763083,111160.0,111150.0,0.00203]
[1756829110287,0.20763083,111160.0,111150.0,0.15731]
[1756829110732,0.20551083,111160.0,111150.0,0.33724702]
[1756829111000,0.20763083,111160.0,111150.0,0.33724702]
[1756829111219,0.20763083,111160.0,111150.0,3e-05]
[1756829111438,0.17993702,111150.0,111140.0,0.7353092]
[1756829111639,0.18205702,111150.0,111140.0,0.8946192]
[1756829112694,0.18210398,111150.0,111140.0,0.8946192]
[1756829113060,0.18210398,111150.0,111140.0,0.7373392]
[1756829113268,0.18210398,111150.0,111140.0,0.8966192]
[1756829113743,0.17998398,111150.0,111140.0,0.8966192]
[1756829113944,0.18210398,111150.0,111140.0,0.8966192]
[1756829114132,0.63412708,111150.0,111140.0,0.46544]
[1756829114334,0.63412708,111150.0,111140.0,0.22268]
[1756829115149,0.63100708,111150.0,111140.0,0.40466321]
[1756829115621,0.63100708,111150.0,111140.0,0.22471]
[1756829115826,0.63412708,111150.0,111140.0,0.22268]
[1756829116030,0.63412708,111150.0,111140.0,0.06344]
[1756829116449,0.17995321,111140.0,111120.0,0.53092]
[1756829116660,0.6112325,111130.0,111120.0,0.42455599]
[1756829116910,0.6341125,111130.0,111120.0,0.06344]
[1756829117329,0.6341125,111130.0,111120.0,0.15724]
[1756829117507,0.2080894,111130.0,111120.0,0.15724]
[1756829117739,0.6341125,111130.0,111120.0,0.15927]
[1756829117940,0.6341125,111130.0,111120.0,0.15724]
[1756829119174,0.6341125,111130.0,111120.0,0.15924]
[1756829119590,0.6341125,111130.0,111120.0,0.15724]
[1756829120118,0.2028494,111130.0,111120.0,0.3392556]
[1756829120970,0.02288,111130.0,111120.0,0.43430159]
[1756829121237,0.17995321,111140.0,111120.0,0.43430159]
[1756829121443,0.60597631,111140.0,111120.0,0.43430159]
[1756829121843,0.17995321,111140.0,111120.0,0.43430159]
[1756829122050,0.60597631,111140.0,111120.0,0.43430159]
[1756829122249,0.17995321,111140.0,111120.0,0.43430159]
[1756829122454,0.60597631,111140.0,111120.0,0.43530159]
[1756829122661,0.17995321,111140.0,111130.0,0.1799694]
[1756829122865,0.18207321,111140.0,111130.0,0.00203]
[1756829123515,0.18207321,111140.0,111130.0,0.1819994]
[1756829124131,0.60809631,111140.0,111130.0,0.00203]
[1756829124333,0.63409631,111140.0,111130.0,0.001]
[1756829124535,0.63409631,111140.0,111130.0,0.1582]
[1756829125129,0.63409631,111140.0,111130.0,0.001]
[1756829125334,0.97409631,111140.0,111130.0,0.001]
[1756829125536,0.97409631,111140.0,111130.0,0.1582]
[1756829126043,0.97409631,111140.0,111130.0,0.1572]
[1756829127122,0.97409631,111140.0,111110.0,0.07354631]
[1756829127123,0.1799856,111120.0,111110.0,0.07354631]
[1756829127329,0.6060087,111120.0,111110.0,0.07354631]
[1756829127563,0.6341287,111120.0,111110.0,0.23074631]
[1756829128453,0.64316853,111120.0,111110.0,0.23074631]
[1756829129070,0.6341287,111120.0,111110.0,0.23074631]
[1756829129299,0.6310087,111120.0,111110.0,0.23277631]
[1756829129507,0.2028656,111120.0,111110.0,0.42198955]
[1756829129714,0.98515126,111140.0,111120.0,0.1799856]
[1756829129956,0.18895087,111140.0,111130.0,0.15923]
[1756829130390,0.19419087,111140.0,111130.0,0.15923]
[1756829130613,0.61709397,111140.0,111130.0,0.15923]
[1756829130852,0.22493821,111150.0,111130.0,0.4026394]
[1756829131067,0.18898083,111150.0,111130.0,0.49768539]
[1756829131335,0.17998398,111150.0,111140.0,0.17995321]
[1756829131547,4.696e-05,111150.0,111140.0,0.27724861]
[1756829131761,4.696e-05,111150.0,111140.0,0.2770292]
[1756829132317,4.696e-05,111150.0,111140.0,0.6770292]
[1756829132977,4.696e-05,111150.0,111140.0,1.12399112]
[1756829133161,4.696e-05,111150.0,111140.0,0.69796802]
[1756829133752,4.696e-05,111150.0,111140.0,0.87459755]
[1756829134343,4.696e-05,111150.0,111140.0,0.87659755]
[1756829134884,4.696e-05,111150.0,111140.0,0.71943755]
[1756829135009,4.696e-05,111150.0,111140.0,0.87659755]
[1756829135843,4.696e-05,111150.0,111140.0,1.32355947]
[1756829136257,4.696e-05,111150.0,111140.0,1.86179947]
[1756829136827,1e-08,111150.0,111140.0,1.88883876]
[1756829137457,1e-08,111150.0,111140.0,1.88683876]
[1756829137857,1e-08,111150.0,111140.0,1.89183876]
[1756829139044,1e-08,111150.0,111140.0,1.73467876]
[1756829139251,1e-08,111150.0,111140.0,1.89179876]
[1756829139900,1e-08,111150.0,111140.0,1.73467876]
[1756829140107,1e-08,111150.0,111140.0,1.89179876]
[1756829141310,1e-08,111150.0,111140.0,1.46577566]
[1756829141520,1e-08,111150.0,111140.0,1.89179876]
[1756829143616,1e-08,111150.0,111140.0,1.94179876]
[1756829143825,1e-08,111150.0,111140.0,1.94175876]
[1756829144556,1e-08,111150.0,111140.0,1.93675876]
[1756829144922,1e-08,111150.0,111140.0,1.94375876]
[1756829145589,1e-08,111150.0,111140.0,2.41978186]
[1756829146199,1e-08,111150.0,111140.0,2.26270186]
[1756829146423,1e-08,111150.0,111140.0,1.99375876]
[1756829146572,1e-08,111150.0,111140.0,2.41978186]
[1756829147440,0.0002,111180.0,111170.0,0.20084347]
[1756829147588,0.00024696,111180.0,111170.0,1.17507316]
[1756829147789,0.00024696,111180.0,111170.0,0.51517946]
[1756829147999,0.00024696,111180.0,111170.0,1.17705316]
[1756829148201,0.00024696,111180.0,111170.0,1.61813139]
[1756829148649,0.00024696,111180.0,111170.0,1.62110139]
[1756829148867,0.00024696,111180.0,111170.0,1.61813139]
[1756829150100,0.00024696,111180.0,111170.0,0.95625769]
[1756829150301,0.00024696,111180.0,111170.0,1.61813139]
[1756829150523,0.00219696,111180.0,111170.0,1.61813139]
[1756829150730,0.00024696,111180.0,111170.0,1.62705244]
[1756829150906,0.00024696,111180.0,111170.0,1.62701244]
[1756829151747,0.00024696,111180.0,111170.0,1.62998244]
[1756829152153,0.00024696,111180.0,111170.0,1.62701244]
[1756829152568,0.00024696,111180.0,111170.0,1.97098244]
[1756829152757,1e-08,111180.0,111170.0,1.96998244]
[1756829153486,1e-08,111180.0,111170.0,1.99306244]
[1756829154775,1e-08,111180.0,111170.0,1.99606244]
[1756829156100,1e-08,111180.0,111170.0,1.99602244]
[1756829157269,1e-08,111180.0,111170.0,1.83906244]
[1756829157480,1e-08,111180.0,111170.0,1.99602244]
[1756829158093,1e-08,111180.0,111170.0,1.83906244]
[1756829158305,1e-08,111180.0,111170.0,1.99602244]
[1756829159326,1e-08,111180.0,111170.0,1.83906244]
[1756829159462,1e-08,111180.0,111170.0,1.99602244]
[1756829159668,1e-08,111180.0,111170.0,1.99301244]
[1756829160327,1e-08,111180.0,111170.0,1.83609244]
[1756829160529,1e-08,111180.0,111170.0,1.99598244]
[1756829161796,1e-08,111180.0,111170.0,1.99301244]
[1756829162145,1e-08,111180.0,111170.0,1.83609244]
[1756829162362,1e-08,111180.0,111170.0,1.99598244]
[1756829163693,1e-08,111180.0,111170.0,1.83609244]
[1756829163914,1e-08,111180.0,111170.0,1.99301244]
[1756829164087,1e-08,111180.0,111170.0,1.83609244]
[1756829164310,1e-08,111180.0,111170.0,1.99301244]
[1756829164640,1e-08,111180.0,111170.0,1.83609244]
[1756829164881,0.02771001,111180.0,111170.0,1.17223874]
[1756829165109,0.02771001,111180.0,111170.0,1.83411244]
[1756829165326,0.02771001,111180.0,111170.0,1.99297244]
[1756829166163,0.02448001,111180.0,111170.0,1.99297244]
[1756829166365,0.02771001,111180.0,111170.0,1.99099244]
[1756829166778,0.02771001,111180.0,111170.0,1.32911874]
[1756829166992,0.02771001,111180.0,111170.0,1.28509992]
[1756829167239,0.02771001,111180.0,111170.0,1.96791244]
[1756829167669,0.02771001,111180.0,111170.0,1.14915874]
[1756829167998,0.20759847,111180.0,111170.0,0.37929887]
[1756829168294,0.68958371,111180.0,111170.0,0.53317887]
[1756829168441,0.02771001,111180.0,111170.0,0.53317887]
[1756829169301,0.02771001,111180.0,111170.0,0.53417887]
[1756829169613,0.02771001,111180.0,111170.0,0.53317887]
[1756829170098,0.02871001,111180.0,111170.0,0.53317887]
[1756829171746,0.02871001,111180.0,111170.0,0.37629887]
[1756829171988,0.02871001,111180.0,111170.0,0.93317887]
[1756829172133,0.02771001,111180.0,111170.0,0.94221207]
[1756829175232,0.02771001,111180.0,111170.0,0.94436207]
[1756829176163,0.02448001,111180.0,111170.0,0.94436207]
[1756829176401,1e-08,111180.0,111170.0,1.63027459]
[1756829176626,1e-08,111180.0,111170.0,0.96530089]
[1756829176848,0.00205001,111180.0,111170.0,1.62713459]
[1756829177064,0.00205001,111180.0,111170.0,0.96526089]
[1756829177282,1e-08,111180.0,111170.0,0.96526089]
[1756829177505,1e-08,111180.0,111170.0,0.96836089]
[1756829177949,1e-08,111180.0,111170.0,1.63023459]
[1756829178589,1e-08,111180.0,111170.0,0.96526089]
[1756829178804,1e-08,111180.0,111170.0,1.62713459]
[1756829179236,1e-08,111180.0,111170.0,1.63123459]
[1756829179439,1e-08,111180.0,111170.0,0.96836089]
[1756829179642,1e-08,111180.0,111170.0,1.97023459]
[1756829179848,1e-08,111180.0,111170.0,1.97323459]
[1756829180538,1e-08,111180.0,111170.0,1.81639459]
[1756829180758,1e-08,111180.0,111170.0,1.97319459]
[1756829181620,0.0002,111200.0,111190.0,0.51987229]
[1756829181836,0.0002,111200.0,111190.0,1.62858198]
[1756829182053,0.0002,111220.0,111210.0,1.20265246]
[1756829182260,0.0002,111220.0,111210.0,1.51476845]
[1756829182464,0.0002,111220.0,111210.0,1.52001845]
[1756829182683,1e-08,111220.0,111210.0,0.86174771]
[1756829182890,1e-08,111220.0,111210.0,1.52362141]
[1756829183309,1e-08,111220.0,111210.0,1.36682141]
[1756829183688,1e-08,111220.0,111210.0,1.92362141]
[1756829183924,0.00028,111230.0,111220.0,0.54076259]
[1756829184101,0.00028,111230.0,111220.0,1.45445228]
[1756829184322,0.00028,111230.0,111220.0,1.45660228]
[1756829184527,0.00028,111230.0,111220.0,1.69980228]
[1756829184681,0.00028,111230.0,111220.0,1.85660228]
[1756829185463,0.00028,111230.0,111220.0,1.03792858]
[1756829185636,0.00028,111230.0,111220.0,1.69980228]
[1756829185868,0.00028,111230.0,111220.0,1.85656228]
[1756829186071,0.00028,111230.0,111220.0,1.85756228]
[1756829186272,0.00028,111230.0,111220.0,1.8982413]
[1756829186463,0.00028,111230.0,111220.0,1.7414813]
[1756829186668,0.00028,111230.0,111220.0,1.2363676]
[1756829186917,0.00028,111230.0,111220.0,1.7414813]
[1756829187040,0.00028,111230.0,111220.0,1.8982413]
[1756829187435,0.00233,111230.0,111220.0,1.05341878]
[1756829187635,0.02941,111230.0,111220.0,1.21017878]
[1756829187840,0.02941,111230.0,111220.0,1.2311176]
[1756829188486,0.02941,111230.0,111220.0,1.0743576]
[1756829188797,0.02941,111230.0,111220.0,1.2311176]
[1756829189013,0.02941,111230.0,111220.0,1.2310776]
[1756829189241,0.02941,111230.0,111220.0,1.2300776]
[1756829189881,0.02627,111230.0,111220.0,1.2332276]
[1756829190121,0.02627,111230.0,111220.0,1.2322276]
[1756829190585,0.02941,111230.0,111220.0,1.2300776]
[1756829190795,0.02422,111230.0,111220.0,1.2322276]
[1756829190996,0.02627,111230.0,111220.0,1.2322276]
[1756829191456,0.02941,111230.0,111220.0,1.2300776]
[1756829191657,0.02941,111230.0,111220.0,1.2322276]
[1756829192088,0.02941,111230.0,111220.0,1.2300776]
[1756829192247,0.02422,111230.0,111220.0,1.8941013]
[1756829192667,0.00028,111230.0,111220.0,1.8972013]
[1756829193064,0.00028,111230.0,111220.0,1.90080377]
[1756829193278,0.0002,111240.0,111230.0,0.5198076]
[1756829193477,0.0002,111250.0,111240.0,0.51979144]
[1756829193677,0.0002,111250.0,111240.0,1.69385113]
[1756829194001,0.0002,111250.0,111240.0,1.43197743]
[1756829194205,0.0002,111250.0,111240.0,1.27529743]
[1756829194433,0.00225,111250.0,111240.0,1.42982743]
[1756829194624,0.0002,111250.0,111240.0,1.44096814]
[1756829195836,0.00225,111250.0,111240.0,1.44096814]
[1756829196238,0.0002,111250.0,111240.0,1.44096814]
[1756829196556,0.00225,111250.0,111240.0,1.44096814]
[1756829196969,0.00225,111250.0,111240.0,1.44092814]
[1756829198029,0.00225,111250.0,111240.0,1.10092814]
[1756829198264,0.00225,111250.0,111240.0,1.44092814]
[1756829198589,0.00225,111250.0,111240.0,1.28428814]
[1756829198793,0.00225,111250.0,111240.0,1.44092814]
[1756829199218,0.00225,111250.0,111240.0,1.46186696]
[1756829199663,0.0002,111250.0,111240.0,2.12374066]
[1756829200351,0.00541,111250.0,111240.0,1.30307696]
[1756829200551,0.0023,111250.0,111240.0,1.30514696]
[1756829200753,0.00541,111250.0,111240.0,1.45971696]
[1756829201058,0.02991,111250.0,111240.0,1.45971696]
[1756829201240,0.02991,111250.0,111240.0,1.46178696]
[1756829201436,0.0268,111250.0,111240.0,1.30514696]
[1756829201834,0.02991,111250.0,111240.0,1.45967696]
[1756829202075,0.02991,111250.0,111240.0,1.46174696]
[1756829202271,0.02991,111250.0,111240.0,0.94213814]
[1756829202475,0.02991,111250.0,111240.0,1.09873814]
[1756829202990,0.02991,111250.0,111240.0,0.75335599]
[1756829202991,0.72550534,111250.0,111240.0,0.75335599]
[1756829203238,0.90182205,111250.0,111240.0,0.55527599]
[1756829203456,0.90182205,111250.0,111240.0,0.06336]
[1756829203863,0.92497355,111250.0,111240.0,0.06336]
[1756829204069,0.1798076,111230.0,111220.0,0.10453177]
[1756829204282,0.87194437,111230.0,111220.0,0.06385275]
[1756829204496,1.21404437,111230.0,111220.0,0.22045275]